[Event "10th Cherry Blossom Classic 2023"]
[Site "Dulles"]
[Date "2023.05.30"]
[Round "9.10"]
[White "Senft, Sean"]
[Black "Michelle Catherina, P."]
[Result "0-1"]
[ECO "D38"]
[WhiteElo "2089"]
[BlackElo "2193"]
[Annotator "TA"]
[PlyCount "138"]
[EventDate "2023.05.24"]
[EventType "swiss"]
[EventCountry "USA"]
[SourceTitle "playchess.com"]
[Source "ChessBase"]
[SourceQuality "1"]
[TimeControl "5400+30"]

{[%evp 12,138,19,12,35,14,6,22,6,-24,-24,-15,-25,-29,-7,-81,-74,-87,-35,-97,-111,-118,-89,-95,-95,-135,-70,-56,-77,-55,-60,-70,-68,-103,-102,-146,-110,-114,-110,-108,-108,-115,-49,-56,-68,-75,0,0,0,0,0,0,0,0,0,-24,0,0,0,0,0,0,0,0,-3,-14,-15,-20,0,0,0,0,0,0,0,0,0,-264,-267,-600,-592,-558,-550,-5237,-453,-12523,-8852,-5900,-3430,-3287,-2502,-29963,-29952,-29945,-6609,-11199,-12241,-5620,-8056,-8458,-6634,-5620,-8286,-9722,-6609,-29973,-29971,-29974,-29971,-29978,-29979,-29979,-29980,-29980,-29981,-29981,-29982,-29975,-12842,-29983,-29984,-29984,-29985,-29985,-29986,-29986,-29987,-29987,-29988]} 1. d4 {[%emt 0:05:08]} Nf6 {[%emt 0:02:33]} 2. c4 {[%emt 0:00:10]} e6 {[%emt 0:00:08]} 3. Nf3 {[%emt 0:00:09]} d5 {[%emt 0:03:26]} 4. Nc3 {[%emt 0:00:19]} Bb4 {[%emt 0:00:13]} 5. cxd5 {[%emt 0:00:25]} exd5 {[%emt 0:00:04]} 6. Bg5 {[%emt 0:00:14]} h6 {[%emt 0:00:19]} 7. Bh4 {[%emt 0:00:17]} Nbd7 {[%emt 0:00:18] D38: Queen's Gambit Declined: Ragozin Defence (4 Nf3 Bb4).} 8. e3 {[%emt 0:00:25]} g5 {[%emt 0:00:50]} 9. Bg3 {[%emt 0:00:08]} Ne4 {[%emt 0:00:11] The position is equal.} 10. Rc1 {[%emt 0:01:01]} h5 {[%emt 0:02:11]} 11. h3 {[%emt 0:08:21]} Nxg3 {[%emt 0:00:49]} 12. fxg3 {[%emt 0:00:06]} Qe7 {[%emt 0:06:38]} 13. Kf2 {[%emt 0:05:09] [#]} (13. a3 $1 $11 {remains equal.} Bxc3+ 14. Rxc3) 13... Nf6 $146 {[%emt 0:04:09]} ({Predecessor:} 13... c6 14. Bd3 g4 15. Nh4 Nf6 16. Nf5 Bxf5 17. Bxf5 gxh3 18. Rxh3 Rg8 19. Qf3 Rd8 {½-½ Dragnev,V (2483)-Popov,V (2532) EU-ch rapid Skopje 2018 (3)}) 14. Bd3 {[%emt 0:02:37]} c6 {[%emt 0:04:02]} (14... g4 $17 15. Ne5 Bd6 16. Qa4+ Kf8) 15. Qc2 {[%emt 0:08:40]} ({Better is} 15. Nxg5 $15 Rg8 16. Nf3) 15... g4 {[%emt 0:06:17]} 16. Nh4 {[%emt 0:03:52]} gxh3 {[%emt 0:14:26]} (16... Kd8 {feels hotter.} 17. Qe2 Rg8 18. Nf5 Bxf5 19. Bxf5 Kc7) 17. gxh3 {[%emt 0:00:12]} Bd6 {[%emt 0:01:26][%cal Od6g3] Hoping for ...Bxg3+!} 18. Ne2 {[%emt 0:06:03]} Ne4+ {[%emt 0:06:34]} (18... Rg8 $17 19. Rcg1 Bd7) 19. Bxe4 $15 {[%emt 0:00:47]} dxe4 {[%emt 0:00:02]} 20. Ng2 {[%emt 0:04:22]} Bd7 {[%emt 0:03:34]} (20... h4 {is more complex.} 21. g4 Bd7 22. d5 O-O-O) 21. Ngf4 {[%emt 0:08:02]} O-O-O {[%emt 0:01:37]} 22. a3 {[%emt 0:00:35]} Kb8 {[%emt 0:01:50]} 23. b4 {[%emt 0:02:17]} Rdg8 {[%emt 0:01:05]} 24. h4 {[%emt 0:05:47]} Bg4 {[%emt 0:03:15]} 25. Rhg1 {[%emt 0:02:18]} Bf3 {[%emt 0:04:50]} 26. Rb1 {[%emt 0:04:01]} Rg4 {[%emt 0:06:33]} ({Black should play} 26... a6 $17 27. Rbf1 Rg7) 27. b5 {[%emt 0:05:03]} c5 {[%emt 0:02:19]} (27... Bxa3 28. bxc6 b6 29. Nd5 $18) 28. b6 {[%emt 0:03:21] [#]} Bxe2 {[%emt 0:02:31]} (28... a6 $1 $17 {aiming for ...Bxe2.} 29. dxc5 Bxc5) 29. bxa7+ $1 $11 {[%emt 0:00:35]} Kxa7 {[%emt 0:03:22]} ({Don't take} 29... Ka8 30. Nd5 Qe6 31. Nb6+ Kxa7 32. Kxe2 Rxg3 33. Rxg3 (33. dxc5 Qg4+ 34. Kd2 Rg2+ {[%mdl 64] Skewer} 35. Rxg2 Qxg2+ 36. Kd1 Qf3+ 37. Kd2 Qg2+ 38. Kd1 Qf3+ 39. Kd2 Qf2+ {[%mdl 64] Deflection} 40. Kc3 Qxc2+ 41. Kxc2 Bxc5 $17) (33. Qa4+ Kb8 $11) 33... Bxg3 34. Qa4+ (34. dxc5 $2 Rd8 $19) 34... Kb8 35. Rb5 $14 (35. dxc5 Qa2+ 36. Kd1 Qxb1+ 37. Kd2 Qb2+ 38. Kd1 Rd8+) (35. Qa8+ $2 Kc7 $19)) 30. Nxe2 {[%emt 0:02:49] Threatens to win with Rb5.} Rhg8 {[%emt 0:01:13]} 31. dxc5 {[%emt 0:05:31]} Bxc5 {[%emt 0:12:41]} 32. Qb3 {[%emt 0:01:04]} R8g6 {[%emt 0:01:04]} (32... Bxa3 $2 33. Ra1 Kb8 34. Rxa3 $18) 33. Nd4 {[%emt 0:04:44]} Bxd4 {[%emt 0:01:41]} (33... Bxa3 $2 34. Ra1 Ra6 35. Rxa3 Rxa3 36. Nb5+ Kb8 37. Qxa3 $18) 34. Qa4+ $1 {[%emt 0:00:36]} Kb8 {[%emt 0:01:02]} 35. Qxd4 {[%emt 0:00:13]} Rd6 {[%emt 0:03:20] The board is on fire.} (35... Qxa3 {is a self mate.} 36. Qd8+ Ka7 37. Rxb7+ Kxb7 38. Rb1+) 36. Qh8+ {[%emt 0:01:31]} Rd8 {[%emt 0:00:33]} 37. Qb2 {[%emt 0:00:21]} Rg6 {[%emt 0:00:41] With the idea ...Rgd6.} 38. Rgd1 {[%emt 0:01:40]} Rdg8 $36 {[%emt 0:00:13][%mdl 2048] Dodges Rxd8+. White is under pressure.} 39. Rg1 {[%emt 0:00:57]} Rf6+ {[%emt 0:01:03]} 40. Ke2 $1 {[%emt 0:00:28]} Rf3 {[%emt 0:00:51]} 41. Qb4 {[%emt 0:01:46]} Qxb4 {[%emt 0:00:31]} 42. Rxb4 {[%emt 0:00:06][%mdl 4096] Endgame KRR-KRR} (42. axb4 {simplifies} Rgxg3 43. Rxg3 Rxg3 44. Rf1) 42... f5 {[%emt 0:00:19]} 43. Rb5 {[%emt 0:00:47]} Rc8 {[%emt 0:00:25] And now ...Rc2+ would win.} 44. Kd2 {[%emt 0:05:47][%mdl 8192] Repels Rc2+. Black continues to play with concentration.} (44. Rf1 $11 {and White is okay.} Rxg3 45. Rfxf5 (45. Rbxf5 $2 Rc2+ 46. Kd1 Ra2 $17)) 44... Rf2+ $19 {[%emt 0:00:22]} 45. Ke1 $2 {[%emt 0:00:43]} (45. Kd1) 45... Ra2 {[%emt 0:00:33][%cal Rc8c1]} 46. Rb1 {[%emt 0:00:40] Prevents Rc1+.} Rc3 {[%emt 0:00:14]} 47. Rf1 {[%emt 0:00:33]} Rxe3+ {[%emt 0:00:08]} 48. Kd1 {[%emt 0:00:05]} Rxg3 {[%emt 0:00:26]} 49. Ke1 {[%emt 0:00:37]} Re3+ {[%emt 0:01:17]} 50. Kd1 {[%emt 0:00:04]} Rh3 {[%emt 0:00:28]} 51. Ke1 {[%emt 0:00:44]} Rxh4 {[%emt 0:00:33]} 52. Rxf5 {[%emt 0:00:06]} Rh1+ {[%emt 0:00:18]} (52... e3 $142 53. a4 Kc7 54. Rf1 Rhh2 55. Rf7+ Kd8 56. Rf4 e2 57. Rd4+ Ke7 58. Rd2 Rh1+ {[%mdl 64] Skewer} 59. Kf2 Rxb1 60. Rxe2+ Rxe2+ 61. Kxe2 h4 62. Kf3 h3 63. Kg3 Rb3+ 64. Kh2 Kf6 65. Kg1 Rb2 66. a5 Ke5 67. a6 bxa6 68. Kh1 Kf5 69. Kg1 Kg4 70. Kh1 Kg3 71. Kg1 Rb1#) 53. Rf1 {[%emt 0:00:04]} Rxf1+ {[%emt 0:00:02]} 54. Kxf1 {[%emt 0:00:05]} Rxa3 {[%emt 0:00:02] KR-KR} 55. Re1 {[%emt 0:01:45]} e3 {[%emt 0:00:22]} 56. Ke2 {[%emt 0:00:03]} Ka7 {[%emt 0:00:22]} 57. Rh1 {[%emt 0:00:05]} Ka6 {[%emt 0:00:16][%cal Oh5h4] ( -> ...h4!)} 58. Rxh5 {[%emt 0:00:04]} b5 {[%emt 0:00:18][%cal Bb7b5,Bb5b4,Bb4b3][%mdl 32]} 59. Re5 {[%emt 0:04:22]} Ka5 {[%emt 0:00:13]} 60. Re4 {[%emt 0:00:06]} Rc3 {[%emt 0:00:11]} 61. Kd1 {[%emt 0:01:17]} b4 {[%emt 0:00:10]} 62. Re8 {[%emt 0:00:26]} Ka4 {[%emt 0:00:06]} 63. Ra8+ {[%emt 0:00:23]} Kb3 {[%emt 0:00:02]} 64. Rb8 {[%emt 0:00:08]} Ka3 {[%emt 0:00:03]} (64... Rc4 $142 65. Ke2 Rc3 66. Kf3 Ka3 67. Ra8+ Kb2 68. Rh8 b3 69. Ke4 Kc1 70. Rh1+ Kd2 71. Rb1 e2 72. Rb2+ Kd1 73. Rb1+ Kc2 74. Rg1 Kd2 75. Rh1 e1=R+ 76. Rxe1 Kxe1 77. Kf5 b2 78. Ke5 b1=Q 79. Kd4 Qb4+ 80. Ke5 Rc5+ 81. Ke6 Qb6+ 82. Kf7 Rc7+ 83. Kg8 Qb8#) 65. Rb7 {[%emt 0:00:32]} b3 {[%emt 0:00:07] Black mates.} 66. Ra7+ {[%emt 0:00:46]} Kb2 {[%emt 0:00:01]} 67. Ra8 {[%emt 0:00:20]} Kb1 {[%emt 0:00:28]} 68. Ra3 {[%emt 0:00:30] [#]} e2+ $1 {[%emt 0:00:48][%mdl 64] Deflection} 69. Kxe2 {[%emt 0:00:13]} (69. Ke1 Kc2) 69... Kc2 {[%emt 0:00:03] Weighted Error Value: White=0.66/Black=0.25 (precise)} 0-1

[Event "10th Cherry Blossom Classic 2023"]
[Site "Dulles"]
[Date "2023.05.30"]
[Round "9.11"]
[White "Muzychuk, Anna"]
[Black "Ismayilova, Khanim"]
[Result "1/2-1/2"]
[ECO "B31"]
[WhiteElo "2504"]
[BlackElo "1562"]
[Annotator "TA"]
[PlyCount "79"]
[EventDate "2023.05.24"]
[EventType "swiss"]
[EventCountry "USA"]
[SourceTitle "playchess.com"]
[Source "ChessBase"]
[SourceQuality "1"]
[TimeControl "5400+30"]

{[%evp 14,79,25,29,55,50,59,43,43,42,47,-8,-14,0,59,59,62,56,58,39,54,57,50,0,0,0,3,0,0,-79,-43,-78,-79,-79,-71,-70,-72,-124,-122,-149,-95,-118,-103,-164,-74,-120,-95,-135,-14,-134,-62,-67,-64,-100,-92,-92,0,0,0,0,0,0,0,0,0,0,3,3]} 1. e4 {[%emt 0:14:59]} c5 {[%emt 0:00:04]} 2. Nf3 {[%emt 0:00:11]} Nc6 {[%emt 0:00:07]} 3. Bb5 {[%emt 0:00:08]} g6 {[%emt 0:01:33]} 4. Bxc6 {[%emt 0:00:07]} dxc6 {[%emt 0:00:05]} 5. d3 {[%emt 0:00:06]} Bg7 {[%emt 0:01:00]} 6. h3 {[%emt 0:00:08]} Nf6 {[%emt 0:05:39]} 7. O-O {[%emt 0:00:18]} O-O {[%emt 0:01:14]} 8. Nc3 {[%emt 0:00:36]} Be6 {[%emt 0:08:15] B31: Sicilian: 2...Nc6 3 Bb5 g6.} 9. Be3 {[%emt 0:00:20]} c4 {[%emt 0:06:19]} 10. d4 {[%emt 0:00:13]} b5 {[%emt 0:02:09] [#] White is slightly better.} 11. Ng5 $146 {[%emt 0:01:46][%cal Bf3g5,Bg5e4,Be4c5][%mdl 32]} ({Predecessor:} 11. a3 a5 12. Ng5 Bd7 13. e5 Nd5 14. Qd2 Bf5 15. g4 Bc8 16. Nge4 f5 17. exf6 exf6 18. Nxd5 Qxd5 {½-½ Ameir,M (2431)-Bayramov,E (2263) Baku op 2016 (5)}) 11... Bd7 {[%emt 0:04:37]} 12. e5 {[%emt 0:04:26]} (12. Re1 $14) 12... Nd5 $11 {[%emt 0:01:06]} 13. Nge4 {[%emt 0:00:05]} Be6 {[%emt 0:09:14]} (13... f5 $11 14. exf6 Nxe3 15. fxe3 exf6) 14. Nc5 $14 {[%emt 0:00:53]} Nxc3 {[%emt 0:05:02]} 15. bxc3 {[%emt 0:00:08]} Bd5 {[%emt 0:00:12]} 16. Qd2 {[%emt 0:00:44]} f6 {[%emt 0:07:01]} 17. e6 $1 {[%emt 0:03:52]} Qc8 {[%emt 0:02:19]} 18. Bh6 {[%emt 0:00:13]} (18. Rfe1 $14) 18... Bxh6 $11 {[%emt 0:08:27]} (18... Bxe6 19. Rae1 Bd5 20. Bxg7 (20. Rxe7 Rf7 $14) 20... Kxg7 21. Rxe7+ Rf7 22. Rfe1 $14) 19. Qxh6 {[%emt 0:00:07]} Qc7 {[%emt 0:01:01]} 20. h4 {[%emt 0:06:34]} (20. a4 {is interesting.} a5 21. Rfe1 Qd6 22. Nd7) 20... Kh8 {[%emt 0:02:08][%cal Og6g5]} 21. Rfe1 {[%emt 0:02:02]} (21. Qe3 $11) 21... Rg8 {[%emt 0:03:26]} (21... g5 {with more complications.} 22. hxg5 Rg8 23. gxf6 Rxg2+ 24. Kf1 Rg6) 22. Ne4 {[%emt 0:16:39]} Bxe4 {[%emt 0:02:00]} 23. Rxe4 {[%emt 0:00:06]} Qd6 {[%emt 0:03:12]} 24. Qe3 {[%emt 0:02:16]} a5 {[%emt 0:07:01]} 25. f4 {[%emt 0:00:31]} ({White should play} 25. Qc1) 25... Qa3 $17 {[%emt 0:03:30]} 26. Qf3 {[%emt 0:01:46]} Qb2 {[%emt 0:01:15]} (26... Rgd8 $142 27. Ree1 b4) 27. Ree1 {[%emt 0:00:08]} Qxc2 {[%emt 0:00:35]} 28. Rac1 {[%emt 0:00:40]} (28. Re2 $17 {might work better.} Qf5 29. Qxc6) 28... Qd3 {[%emt 0:05:23]} (28... Qxa2 $19 {has better winning chances.} 29. Qxc6 Rab8) 29. Qxc6 {[%emt 0:02:03]} ({White should try} 29. Qxd3 cxd3 30. Rcd1) 29... b4 {[%emt 0:00:11]} 30. d5 {[%emt 0:05:22]} bxc3 {[%emt 0:00:30]} (30... Rac8 $17 31. Qd7 Rge8) 31. Rcd1 {[%emt 0:00:10]} (31. Qc5 $11 {was the only way to keep the balance.}) 31... Qg3 {[%emt 0:01:21]} (31... Rac8 $17 32. Qb6 Qf5 33. Qxa5 c2) 32. d6 $15 {[%emt 0:00:21]} exd6 {[%emt 0:02:14]} (32... Qxh4 33. d7 $11) 33. e7 {[%emt 0:01:00]} c2 {[%emt 0:02:30]} (33... Qxh4 $2 34. e8=Q Raxe8 35. Rxe8 Qxf4 36. Re2 $18 (36. Qxd6 $2 Qxd6 37. Rxd6 Rxe8 $19)) 34. Rc1 {[%emt 0:00:15] [#]} Qxf4 {[%emt 0:01:04]} (34... Qxh4 $2 35. e8=Q Raxe8 36. Rxe8 Qxf4 37. Rxg8+ (37. Rxc2 Qd4+ 38. Rf2 Qd1+ 39. Kh2 Qh5+ 40. Kg3 Qg5+ 41. Kf3 Qh5+ 42. Ke4 Qg4+ 43. Ke3 Qg3+ 44. Ke2 Qd3+ 45. Ke1 Qb1+ 46. Ke2 Qd3+ 47. Ke1 Qb1+ 48. Kd2 Qb2+ 49. Ke3 Qc3+ 50. Kf4 g5+ 51. Kg4 Qd4+ 52. Kf3 h5 $18) 37... Kxg8 38. Qd5+ (38. Rxc2 Qd4+ 39. Rf2 Qd1+ 40. Rf1 Qd4+ 41. Kh2 Qh4+ 42. Kg1 Qd4+ 43. Kh2 Qh4+ 44. Kg1 Qd4+ $11) (38. Qe8+ Kg7 $16) 38... Kg7 39. Rxc2 $18) (34... Rge8 $1 $17 {...Qd3 is the strong threat.} 35. Qxd6 Qxh4) 35. Rxc2 $11 {[%emt 0:00:07][%cal Bc1c2,Bc2f2,Bf2f6][%mdl 32] The position is equal.} Qd4+ {[%emt 0:03:13]} 36. Rf2 {[%emt 0:00:11]} Rae8 {[%emt 0:00:33]} (36... Qxh4 $2 37. e8=Q (37. e8=B Rb8 $16) 37... Raxe8 38. Rxe8 $18) 37. Re4 {[%emt 0:01:09] Repels f5} Qc5 {[%emt 0:01:22]} 38. Qxc5 {[%emt 0:02:12]} ({Reject} 38. Rxc4 Qxc6 39. Rxc6 Rxe7 $15) 38... dxc5 {[%emt 0:00:01]} 39. Rxf6 {[%emt 0:00:07][%cal Og1f1]} Rg7 {[%emt 0:01:06]} 40. Rf8+ {[%emt 0:02:26] Weighted Error Value: White=0.27 (precise) /Black=0.22 (precise)} 1/2-1/2

[Event "10th Cherry Blossom Classic 2023"]
[Site "Dulles"]
[Date "2023.05.30"]
[Round "9.12"]
[White "Plotkin, Mark"]
[Black "Altman, Joshua"]
[Result "1-0"]
[ECO "C11"]
[WhiteElo "2341"]
[BlackElo "2120"]
[Annotator "TA"]
[PlyCount "134"]
[EventDate "2023.05.24"]
[EventType "swiss"]
[EventCountry "USA"]
[SourceTitle "playchess.com"]
[Source "ChessBase"]
[SourceQuality "1"]
[TimeControl "5400+30"]

{[%evp 16,134,19,10,17,8,15,5,5,8,13,13,0,21,19,8,10,7,0,1,84,74,136,139,118,120,134,129,283,288,270,283,350,359,483,272,258,254,263,252,321,283,331,223,361,310,352,356,379,368,393,365,434,401,389,242,253,274,260,0,0,0,0,0,8,4,4,8,460,413,510,441,543,534,748,748,712,683,657,647,624,614,569,549,485,225,1818,1763,1600,1482,1364,1049,29963,29964,29966,29961,29961,29962,29959,29962,29975,29976,29976,29973,29979,29980,29980,29981,29981,6122,29982,29983,29984,29982,29982,29983,29995,29992,29993,-29989,-29990]} 1. d4 {[%emt 0:00:18]} Nf6 {[%emt 0:00:05]} 2. Nc3 {[%emt 0:00:05]} e6 {[%emt 0:00:40]} 3. e4 {[%emt 0:00:14]} d5 {[%emt 0:00:08]} 4. e5 {[%emt 0:00:04]} Nfd7 {[%emt 0:00:03]} 5. f4 {[%emt 0:00:06]} c5 {[%emt 0:00:04]} 6. Nf3 {[%emt 0:00:02]} Nc6 {[%emt 0:00:09]} 7. Be3 {[%emt 0:00:04]} a6 {[%emt 0:00:14]} 8. a3 {[%emt 0:00:14]} b5 {[%emt 0:00:50][%cal Bb7b5,Bb5b4][%mdl 32]} 9. Qd2 {[%emt 0:00:06]} Qa5 {[%emt 0:00:54] outshines the older 9...Qb6. C11: French: Classical System: 4 e5 and 4 Bg5 dxe4.} 10. Be2 {[%emt 0:01:58]} b4 {[%emt 0:03:00]} 11. Nb1 {[%emt 0:03:26]} Rb8 {[%emt 0:13:45] [#] The position is equal.} 12. O-O $146 {[%emt 0:19:32]} ({Predecessor:} 12. c3 bxa3 13. Nxa3 Qb6 14. Rb1 Be7 15. O-O a5 16. Nc2 a4 17. Bf2 Ba6 18. c4 {½-½ Piacun,E (2365)-Blake,M (2325) VW-Cup9 sf01 email 2018}) 12... cxd4 {[%emt 0:16:09]} 13. Nxd4 {[%emt 0:00:21]} Nxd4 {[%emt 0:00:35]} 14. Bxd4 {[%emt 0:00:26]} Bc5 {[%emt 0:01:11]} 15. Kh1 {[%emt 0:06:52]} O-O {[%emt 0:05:50]} 16. b3 {[%emt 0:06:39]} Bxd4 {[%emt 0:14:12]} 17. Qxd4 {[%emt 0:00:02]} Qc7 {[%emt 0:00:22]} (17... bxa3 $11 18. Rxa3 Qb6 19. Qxb6 Rxb6) 18. axb4 $16 {[%emt 0:00:49]} Qxc2 {[%emt 0:03:43] [#]} (18... f6 $142) 19. Nc3 $1 {[%emt 0:00:08][%cal Bb1c3,Bc3b5,Bb5d6][%mdl 32] b5 would be deadly.} Qg6 {[%emt 0:05:43]} 20. b5 {[%emt 0:03:16]} (20. Bxa6 Bxa6 21. Rxa6 Qc2 $14) 20... axb5 {[%emt 0:01:01]} 21. Bd3 {[%emt 0:00:20] White is much more active. The black rooks are badly placed.} (21. Nxb5 $6 Qe4 22. Qxe4 dxe4 $11) (21. Bxb5 Qh5 $16) 21... f5 $2 {[%emt 0:04:39]} (21... Qg4 $16) 22. Nxb5 $18 {[%emt 0:00:31]} (22. Bxb5 Qh5 23. Bc6 Nb6 $16) 22... Nb6 {[%emt 0:02:43] Black is weak on the dark squares} 23. Nd6 {[%emt 0:01:05]} Bd7 {[%emt 0:00:43]} 24. Ra7 {[%emt 0:00:27]} Rfd8 {[%emt 0:01:19]} 25. Rc1 {[%emt 0:00:36]} (25. Rb7 $142) 25... Qg4 {[%emt 0:02:25]} 26. h3 {[%emt 0:00:28]} Qg3 {[%emt 0:01:17]} 27. b4 {[%emt 0:01:46]} h5 {[%emt 0:01:29]} 28. Be2 {[%emt 0:07:16]} h4 {[%emt 0:01:05]} 29. Bf3 {[%emt 0:06:36]} Nc4 {[%emt 0:07:37]} (29... Nc8 $142) 30. Nb7 {[%emt 0:01:50]} (30. Nxc4 Rxb4 31. Rg1 (31. Bxd5 Bc6 $16 {[%mdl 64] Pin}) 31... Bc6 $18) 30... Re8 {[%emt 0:04:00]} 31. Nc5 {[%emt 0:02:50]} Bc6 {[%emt 0:05:57]} 32. Rc7 {[%emt 0:01:08]} (32. Rxc4 dxc4 33. Bxc6 Rxb4 $16) 32... Ba8 {[%emt 0:02:08]} 33. Bh5 {[%emt 0:01:52]} Ne3 {[%emt 0:02:27][%csl Ge3][%cal Rg3g2] [#]} 34. Rg1 {[%emt 0:01:10]} Rec8 {[%emt 0:00:26]} 35. Nxe6 {[%emt 0:02:36]} Rxc7 {[%emt 0:00:12]} 36. Nxc7 {[%emt 0:00:01]} Rc8 {[%emt 0:00:32]} 37. Bf3 $2 {[%emt 0:03:05]} (37. Qb6 $18 {aiming for Qe6+.} Kh8 38. Bf3 Qxf4 39. Qd6) 37... Rxc7 $11 {[%emt 0:00:49]} 38. Qxe3 {[%emt 0:00:02]} d4 $1 {[%emt 0:00:13]} 39. Qe1 {[%emt 0:02:38]} (39. Qxd4 {leads to mate.} Bxf3 40. Qd8+ Kh7) 39... Bxf3 {[%emt 0:00:47][%cal Rg3h3]} 40. Qxg3 {[%emt 0:00:02]} hxg3 {[%emt 0:00:05]} 41. gxf3 {[%emt 0:00:06][%cal Og1d1][%mdl 4160] Endgame Discovered Attack. KR-KR} Rc2 $2 {[%emt 0:00:36][%mdl 8192]} (41... g5 $1 $11 {and Black is okay.}) 42. Rd1 $1 $18 {[%emt 0:00:19]} (42. Rxg3 $2 {too greedy.} d3 43. Rg6 Rc1+ 44. Kh2 d2 $19) 42... Rc4 {[%emt 0:00:42]} 43. b5 {[%emt 0:00:32]} Rb4 {[%emt 0:00:06]} 44. Kg2 {[%emt 0:00:42]} Rxb5 {[%emt 0:00:14]} 45. Rxd4 {[%emt 0:00:06]} (45. Kxg3 Rd5 46. Kf2 Kf7 $16) 45... Kf7 {[%emt 0:00:35]} 46. Kxg3 {[%emt 0:00:07]} Rb1 {[%emt 0:00:26]} 47. Rd2 {[%emt 0:01:42]} Rg1+ {[%emt 0:00:18]} 48. Rg2 {[%emt 0:00:08]} Rf1 {[%emt 0:00:38]} 49. Ra2 {[%emt 0:00:08]} Rg1+ {[%emt 0:00:17]} 50. Kh4 {[%emt 0:00:03]} (50. Kf2 $142 Rc1 51. Ra7+ Kg6 52. Ra8) 50... Rf1 $2 {[%emt 0:00:40]} (50... Ke8 51. Ra7 g6) 51. Ra7+ {[%emt 0:00:25]} Kg6 {[%emt 0:00:32]} 52. Ra6+ {[%emt 0:00:05]} Kf7 {[%emt 0:00:11]} 53. Kg5 {[%emt 0:00:10]} Rxf3 {[%emt 0:00:10]} 54. Kxf5 {[%emt 0:00:20]} Rxh3 {[%emt 0:00:19]} 55. Ra7+ {[%emt 0:00:02]} Kf8 {[%emt 0:00:17]} 56. Ke6 {[%emt 0:00:34][%cal Ra7a8]} Rh6+ {[%emt 0:00:07]} 57. Kd7 {[%emt 0:00:15]} Kf7 {[%emt 0:02:48]} 58. f5 {[%emt 0:00:25]} Rh1 {[%emt 0:00:16]} 59. Kd6+ {[%emt 0:00:16]} (59. e6+ Kf6 60. e7 Rd1+ 61. Ke8 Rh1 62. Ra6+ Kxf5 $18) 59... Kf8 {[%emt 0:00:12]} 60. Ra8+ {[%emt 0:00:01]} Kf7 {[%emt 0:00:04]} 61. e6+ {[%emt 0:00:08]} Kf6 {[%emt 0:00:01]} 62. Rf8+ {[%emt 0:00:05]} Kg5 {[%emt 0:00:06]} 63. e7 {[%emt 0:00:12]} Rd1+ {[%emt 0:00:09]} 64. Kc5 {[%emt 0:00:08]} Re1 {[%emt 0:00:24]} 65. e8=Q {[%emt 0:00:07]} Re2 {[%emt 0:03:21]} 66. Qe6 Rxe6 {[%emt 0:00:00]} 67. Re8 $4 {[%emt 0:01:00][%mdl 8192]} (67. fxe6 {is the narrow road to win.} Kh4 68. e7 g6 69. e8=Q Kg5 70. Qe2 Kh6 71. Qh2+ Kg5 72. Qf4+ Kh5 73. Rh8#) 67... Rxe8 {[%emt 0:01:04][%mdl 32768] What a bad dream for White. Excellently played by Plotkin!   Weighted Error Value: White=0.31/Black=0.47. Loss on time!?} 1-0

[Event "10th Cherry Blossom Classic 2023"]
[Site "Dulles"]
[Date "2023.05.29"]
[Round "9.13"]
[White "Kanli, Alperen"]
[Black "ADU, Oladapo"]
[Result "1/2-1/2"]
[ECO "D32"]
[WhiteElo "2111"]
[BlackElo "2081"]
[Annotator "TA"]
[PlyCount "36"]
[EventDate "2023.05.24"]
[EventType "swiss"]
[EventCountry "USA"]
[SourceTitle "playchess.com"]
[Source "ChessBase"]
[SourceQuality "1"]
[TimeControl "5400+30"]

{[%evp 13,36,8,39,33,41,34,45,23,30,-61,-54,-87,-96,-145,-143,-143,-145,-133,-141,-137,-137,-144,-142,-190,-154]} 1. d4 {[%emt 0:00:14]} d5 {[%emt 0:00:12]} 2. c4 {[%emt 0:00:05]} e6 {[%emt 0:00:25]} 3. Nc3 {[%emt 0:00:02]} a6 {[%emt 0:00:19]} 4. cxd5 {[%emt 0:02:11]} exd5 {[%emt 0:00:23]} 5. Bf4 {[%emt 0:01:18]} Nf6 {[%emt 0:00:31]} 6. e3 {[%emt 0:00:01]} c5 {[%emt 0:00:21]} 7. Nf3 {[%emt 1:30:09]} Nc6 {[%emt 0:00:20]} 8. Be2 {[%emt 0:00:00] D32: Tarrasch Defence: Sidelines and lines without g3.} c4 {[%emt 0:00:51] now supersedes 8...Be7.} 9. Ne5 {[%emt 0:00:00]} Bd6 {[%emt 0:00:51] [#]} 10. Bg3 $146 {[%emt 0:00:00] White is slightly better.} ({Predecessor:} 10. Nxc6 bxc6 11. Bxd6 Qxd6 12. O-O Bf5 13. b3 cxb3 14. axb3 a5 15. Qc1 h5 16. Qa3 {1-0 Yilmaz,M (2626)-Van Foreest,J (2691) FIDE Grand Swiss 2021 (5)}) 10... O-O {[%emt 0:03:25]} 11. f4 {[%emt 0:00:00]} ({White should try} 11. Nxc6 $11 bxc6 12. O-O) 11... Bb4 $15 {[%emt 0:00:43]} 12. Bh4 {[%emt 0:00:00]} Qa5 {[%emt 0:00:46]} 13. Bxf6 {[%emt 0:00:00]} (13. O-O $142) 13... gxf6 $17 {[%emt 0:05:22] Black is clearly better.} 14. Nxc6 {[%emt 0:00:00]} Bxc3+ {[%emt 1:23:01]} ({Worse is} 14... bxc6 15. Qc2 $11) 15. bxc3 {[%emt 0:04:00]} Qxc3+ {[%emt 0:00:30]} ({Don't play} 15... bxc6 $6 16. Qc2 $11) 16. Kf2 {[%emt 0:00:30] [#] Strongly threatening Ne7+.} bxc6 {[%emt 0:00:30]} 17. Rc1 {[%emt 0:00:30]} Qa3 18. Qc2 {[%emt 0:00:30]} (18. g4 $17 {is a better defense.}) 18... Re8 {[%emt 0:01:00] White did not feel at home in the position after the opening.   Weighted Error Value: White=0.34/Black=0.05 (flawless)} 1/2-1/2